{"text_format":"1","workbook":"xlsx","n_sheets":3,"sheets":["Sheet1","Sheet2","Sheet3"],"not_rendered":{"charts":0,"images":53,"macros":1,"external_links":0,"defined_names":0,"comments":0,"pivot_tables":0},"unopened":[],"bounds":{"document_bytes":16777216,"sheet_cells":100000,"rows_first":2000,"rows_last":500,"rows_between":2000,"halvings":0,"cell_chars":16384,"cell_head_chars":4096},"cells_cut":0,"cells_raw":0,"read":"whole","date_system":"1900"}

{"sheet":"Sheet1","index":0,"n_rows":57,"n_cols":11,"rows_kept":57,"cut":false,"hidden":false,"merged":[[53,5,53,6],[71,2,71,3],[41,1,41,8]]}
["ا / ناصر عبد الباري","الصف الثاني الإعدادي"]
[]
[]
[]
[]
[]
["أولا القصة من كفاح شعب مصر"]
["[إن هذه الأمّة المصرية العريقة دون سائر الأمم تدل طبائع أبنائها كما تدل آثارها على البقاء والخلود, فكم من مرة اجتاحها الغاصبون الأقوياء وظنوا أنهم حولوا أرضها رمادا تذروه الرياح]"]
[]
["1ـــ  قائل العبارة ---",null,null,"مصطفى كامل",null,"أحمد عرابى ",null,"ماسبيرو",null,false,{"$f":"IF(J10,1,0)","v":0}]
["  مفرد ( طبائع )  ----          ",null,null,"طابعة",null,"طابع",null,"طبيعة",null,false,{"$f":"IF(J11,1,0)","v":0}]
["  البقاء والخلود كلمتان ----",null,null,"متضادتان",null,"مترادفتان",null,"مختلفتان",null,false,0]
[" 2- تولى الجهاد بعد أحمد عرابي ...............",null,null,"محمد فريد ",null,"سعد زغلول",null,"مصطفى كامل ",null,false,0]
["3- اختر :"]
["*ــ مات الضابط الإنجليزى فى دنشواى بأيدى الفلاحين . ",null,null,"صح ",null,"خطأ",null,null,null,false,{"$f":"IF(J15,1,0)","v":0}]
["* ــ سافر مصطفى كامل إلى فرنسا يدعو لقضية بلاده  .",null,null,"صح ",null,"خطأ",null,null,null,false,{"$f":"IF(J16,1,0)","v":0}]
["* ــ حاكم الإنجليز الفلاحين فى دنشواى محاكمة عادلة  .",null,null,"صح ",null,"خطأ",null,null,null,false,0]
["* ــ أنشأ مصطفى كامل جريدة الأخبار .",null,null,"صح ",null,"خطأ",null,null,null,false,0]
[]
["من موضوع   الكنز قبل أن يضيع  :"]
["إن الوقت له مفاهيم متعددة ومتباينة تداولتها الأجيال المتعاقبة عبر السنين والعصور واختلفت في تفسيرها العقول بحسب أهداف كل جيل."]
[" ا   -  هات من الفقرة ",null,"* كلمة مرادفها مختلفة",null,null,null,null,null,null,null,{"$f":"IF(OR(E22=\"متباينة\",E22=\"متباينه\"),1,0)","v":0}]
[null,null,"* وكلمة جمعها الأوقات ",null,null,null,null,null,null,null,{"$f":"IF(E23=\"الوقت\",1,0)","v":0}]
[null,null,"وكلمة مضادها قليلة ",null,null,null,null,null,null,null,{"$f":"IF(OR(E24=\"متعددة\",E24=\"متعدده\"),1,0)","v":0}]
["ب  لماذا اختلفت العقول في تفسير مفهوم الوقت؟ ",null,"لاختلاف الأوقات",null,"حسب أهداف كل جيل",null,"لإختلاف العقول",null,null,false,{"$f":"IF(J25,1,0)","v":0}]
["ج - اتفقت الأ جيال بخصوص الوقت على .......",null,"على وحدته",null,"على ضرورة اهداره",null,"على أهمييته وضرورة استغلاله",null,null,false,{"$f":"IF(J26,1,0)","v":0}]
[]
["ثانيا النصوص"]
["من نص \" الفلاح\""]
[null,"أنا الفلاح في مصــــــــرا         ",null,"أرد ترابـــــها تبــــــــــرا"]
[null,"فــلا تبقـى يـدي قفــــرا           ",null,"بـواديهـا , ولا فقــــــــرا"]
["ا   - أكمل "]
[null," مضاد \" فقراَ\"      ",null,null,null,null,null,null,null,null,{"$f":"IF(C33=\"غنى\",1,0)","v":0}]
[null,"جمع \" مصر \"",null,null,null,null,null,null,null,null,{"$f":"IF(C34=\"أمصار\",1,0)","v":0}]
[null,"مرادف \" أرد \" ",null,null,null,null,null,null,null,null,{"$f":"IF(OR(C35=\"أحول\",C35=\"أجعل\"),1,0)","v":0}]
["يفتخر الشاعر بأنه",null,"من مصر ",null,null,null,null,null,null,null,{"$f":"IF(B36=\"فلاح\",1,0)","v":0}]
["وبأنه يحول ",null,"إلى تبرا",null,null,null,null,null,null,null,{"$f":"IF(B37=\"ترابها\",1,0)","v":0}]
["فــلا تبقـى يـدي قفــــرا           ","أسلوب","نفي","نهي","أمر",null,null,null,null,false,{"$f":"IF(J38,1,0)","v":0}]
["بين ( قفر - وفقر )",null,"تضاد","تجانس","ترادف",null,null,null,null,false,{"$f":"IF(J39,1,0)","v":0}]
[]
["ثالثا: القواعد:-"]
[null,"إن بلدنا خالدة على مر الزمن، كم مرةٍ حاول الغزاة  الطامعون احتلالها و عادوا بخيبة سطَّرها  التاريخ والمعتدون  أنفسهم في كتبهم يؤكدون هذه الحقيقة والآن أصبحت حدود مصر وترابها آمنة."]
["ا- اختر الإعراب الصحيح لما تحته خط "]
[null,"التاريخ","حال منصوب",null,"فاعل مرفوع",null,"مفعول به منصوب",null,null,false,{"$f":"IF(J44,1,0)","v":0}]
[null,"مصر","مضاف إليه",null,"نعت",null,"خبر أصبحت ",null,null,false,{"$f":"IF(J45,1,0)","v":0}]
[null,"آمنة","خبر مرفوع",null,"خبر أصبحت مرفوع",null,"خبر أصبحت منصوب",null,null,false,0]
["ج- استخرج "]
[null,"اسم اشارة",null,null,null,null,null,null,null,null,{"$f":"IF(C48=\"هذه\",1,0)","v":0}]
[null,"فعلا معربا",null,null,null,null,null,null,null,null,{"$f":"IF(C49=\"يؤكدون\",1,0)","v":0}]
[null,"فعلا مبنيا على الضم ",null,null,null,null,null,null,null,null,{"$f":"IF(C50=\"عادوا\",1,0)","v":0}]
[null,"نوع \" كم \"  في العبارة",null,null,null,null,null,null,null,null,{"$f":"IF(OR(C51=\"خبرية\",C51=\"خبريه\"),1,0)","v":0}]
["د- تخير الصواب","زرنا  .............. محافظة",null,null,"(     اثنتا عشر ","اثني عشرة",null,"اثنتي عشرة    )",null,false,{"$f":"IF(J52,1,0)","v":0}]
[null,"\" سطرها \" فعل ",null,null,"(     مجرد ثلاثي ","مزيد ثلاثي بحرفين ",null,"مزيد ثلاثي بالتضعيف  )",null,false,{"$f":"IF(J53,1,0)","v":0}]
[null,"الغزاة     نكشف عنها في مادة ",null,null,"(     غزة","غزو",null,"غزا     )",null,false,0]
[]
[]
["اسم الطالب",null,"الدرجة",null,"من 30",null,"التقدير",{"$f":"IF(D57>=28,\"ممتاز\",IF(D57>=25,\"جيد جدا\",IF(D57>=20,\"جيد\",IF(D57>=15,\"مقبول\",\"راسب\"))))","v":"راسب"}]

{"sheet":"Sheet2","index":1,"n_rows":0,"n_cols":0,"rows_kept":0,"cut":false,"hidden":false,"merged":[]}

{"sheet":"Sheet3","index":2,"n_rows":0,"n_cols":0,"rows_kept":0,"cut":false,"hidden":false,"merged":[]}